Workbook

Sheet SAŽETAK
A1: FINANCIJSKI PLAN MEDICINSKE ŠKOLE U RIJECI ZA 2024. I PROJEKCIJA ZA 2025. I 2026. GODINU ZA 2024. I PROJEKCIJA ZA 2025. I 2026. GODINU
A3: I. OPĆI DIO
A5: A) SAŽETAK RAČUNA PRIHODA I RASHODA
J6: EUR
F7: Izvršenje 2022.* | G7: Plan 2023. | H7: Proračun za 2024. | I7: Projekcija proračuna za 2025. | J7: Projekcija proračuna za 2026.
A8: PRIHODI UKUPNO | F8: =F9+F10 -> 2323572.69 | G8: =G9+G10 -> 3364856.9 | H8: 2929345.73 | I8: 2383930.17 | J8: 2383930.17
A9: 6 PRIHODI POSLOVANJA | F9: =+'Račun prihoda i rashoda'!B12 -> 2323572.69 | G9: =+'Račun prihoda i rashoda'!C12 -> 3364856.9 | H9: =+'Račun prihoda i rashoda'!D12 -> 2929345.73 | I9: =+'Račun prihoda i rashoda'!E12 -> 2383930.17 | J9: =+'Račun prihoda i rashoda'!F12 -> 2383930.17
A10: 7 PRIHODI OD PRODAJE NEFINANCIJSKE IMOVINE
A11: RASHODI UKUPNO | F11: =F12+F13 -> 2332497.21 | G11: =G12+G13 -> 3869019.47 | H11: 2409345.73 | I11: 2383930.17 | J11: 2383930.17
A12: 3 RASHODI POSLOVANJA | F12: =+'Račun prihoda i rashoda'!B25 -> 2316551.72 | G12: =+'Račun prihoda i rashoda'!C25 -> 2527496.89 | H12: =+'Račun prihoda i rashoda'!D25 -> 2406296.65 | I12: =+'Račun prihoda i rashoda'!E25 -> 2380881.09 | J12: =+'Račun prihoda i rashoda'!F25 -> 2380881.09
A13: 4 RASHODI ZA NABAVU NEFINANCIJSKE IMOVINE | F13: =+'Račun prihoda i rashoda'!B31 -> 15945.49 | G13: =+'Račun prihoda i rashoda'!C31 -> 1341522.58 | H13: =+'Račun prihoda i rashoda'!D31 -> 3049.08 | I13: =+'Račun prihoda i rashoda'!E31 -> 3049.08 | J13: =+'Račun prihoda i rashoda'!F31 -> 3049.08
A14: RAZLIKA - VIŠAK / MANJAK | F14: =F8-F11 -> -8924.52 | G14: =G8-G11 -> -504162.57 | H14: 520000 | I14: 0 | J14: 0
A16: B) SAŽETAK RAČUNA FINANCIRANJA
F18: Izvršenje 2022.* | G18: Plan 2023. | H18: Proračun za 2024. | I18: Projekcija proračuna za 2025. | J18: Projekcija proračuna za 2026.
A19: 8 PRIMICI OD FINANCIJSKE IMOVINE I ZADUŽIVANJA | G19: 520000
A20: 5 IZDACI ZA FINANCIJSKU IMOVINU I OTPLATE ZAJMOVA | H20: 520000
A21: NETO FINANCIRANJE | F21: =F19-F20 -> 0 | G21: =G19-G20 -> 520000 | H21: -520000 | I21: 0 | J21: 0
A22: VIŠAK / MANJAK + NETO FINANCIRANJE | F22: =F14+F21 -> -8924.52 | G22: =G14+G21 -> 15837.43 | H22: 0 | I22: 0 | J22: 0
A24: C) PRENESENI VIŠAK ILI PRENESENI MANJAK
F26: Izvršenje 2022.* | G26: Plan 2023. | H26: Proračun za 2024. | I26: Projekcija proračuna za 2025. | J26: Projekcija proračuna za 2026.
A27: PRIJENOS VIŠKA / MANJKA IZ PRETHODNE(IH) GODINE | F27: -6912.93 | G27: 0 | H27: 0 | I27: 0 | J27: 0
A28: PRIJENOS VIŠKA / MANJKA U SLJEDEĆE RAZDOBLJE | F28: =F22+F27 -> -15837.45 | G28: =G22+G27 -> 15837.43 | H28: 0 | I28: 0 | J28: 0
A29: VIŠAK / MANJAK + NETO FINANCIRANJE + PRIJENOS VIŠKA / MANJKA IZ PRETHODNE(IH) GODINE - PRIJENOS VIŠKA / MANJKA U SLJEDEĆE RAZDOBLJE | F29: =F14+F21+F27-F28 -> 0 | G29: =G14+G21+G27-G28 -> 0 | H29: 0 | I29: 0 | J29: 0
A31: D) VIŠEGODIŠNJI PLAN URAVNOTEŽENJA
F33: Izvršenje 2022.* | G33: Plan 2023. | H33: Proračun za 2024. | I33: Projekcija proračuna za 2025. | J33: Projekcija proračuna za 2026.
A34: PRIJENOS VIŠKA / MANJKA IZ PRETHODNE(IH) GODINE | F34: 0 | G34: =F37 -> 0 | H34: =G37 -> 0 | I34: =H37 -> 0 | J34: =I37 -> 0
A35: VIŠAK / MANJAK IZ PRETHODNE(IH) GODINE KOJI ĆE SE RASPOREDITI / POKRITI | F35: 0 | G35: 0 | H35: 0 | I35: 0 | J35: 0
A36: VIŠAK / MANJAK TEKUĆE GODINE | F36: 0 | G36: 0 | H36: 0 | I36: 0 | J36: 0
A37: PRIJENOS VIŠKA / MANJKA U SLJEDEĆE RAZDOBLJE | F37: =F34-F35+F36 -> 0 | G37: =G34-G35+G36 -> 0 | H37: 0 | I37: 0 | J37: 0
A39: * Napomena: Iznosi u stupcima Izvršenje 2022. preračunavaju se iz kuna u eure prema fiksnom tečaju konverzije (1 EUR=7,53450 kuna) i po pravilima za preračunavanje i zaokruživanje.

Sheet Račun prihoda i rashoda
A1: FINANCIJSKI PLAN MEDICINSKE ŠKOLE U RIJECI ZA 2024. I PROJEKCIJA ZA 2025. I 2026. GODINU ZA 2024. I PROJEKCIJA ZA 2025. I 2026. GODINU
A5: I. OPĆI DIO
A6: A. RAČUN PRIHODA I RASHODA
A8: PRIHODI POSLOVANJA PREMA EKONOMSKOJ KLASIFIKACIJI
A10: Oznaka | B10: Izvršenje 2022. | C10: Plan 2023. | D10: Plan 2024. | E10: Projekcija 2025. | F10: Projekcija 2026.
A11: PRIHODI UKUPNO | B11: =+B12 -> 2323572.69 | C11: =+C12 -> 3364856.9 | D11: =+D12 -> 2929345.73 | E11: =+E12 -> 2383930.17 | F11: =+F12 -> 2383930.17
A12: 6 Prihodi poslovanja | B12: =SUM(B13:B17) -> 2323572.69 | C12: =SUM(C13:C17) -> 3364856.9 | D12: =+D13+D14+D15+D16+D17 -> 2929345.73 | E12: 2383930.17 | F12: 2383930.17
A13: 63 Pomoći iz inozemstva i od subjekata unutar općeg proračuna | B13: =2120653.3+269.18 -> 2120922.48 | C13: 2416072.81 | D13: 2683902.39 | E13: 2145986.83 | F13: 2145986.83
A14: 64 Prihodi od imovine | B14: 0.1 | C14: 2 | D14: 3 | E14: 3 | F14: 3
A15: 65 Prihodi od upravnih i administrativnih pristojbi, pristojbi po posebnim propisima i naknada | B15: 26319.2 | C15: 26650 | D15: 26650 | E15: 26650 | F15: 26650
A16: 66 Prihodi od prodaje proizvoda i robe te pruženih usluga i prihodi od donacija te povrati po protestiranim jamstvima | B16: =18920.7+1256.62 -> 20177.32 | C16: 17598.82 | D16: 16820.63 | E16: 16820.63 | F16: 16820.63
A17: 67 Prihodi iz nadležnog proračuna i od HZZO-a temeljem ugovornih obveza | B17: =16565+135295.01+4293.58 -> 156153.59 | C17: 904533.27 | D17: =194469.71+7500 -> 201969.71 | E17: 194469.71 | F17: 194469.71
A20: RASHODI POSLOVANJA PREMA EKONOMSKOJ KLASIFIKACIJI
A23: Oznaka | B23: Izvršenje 2022. | C23: Plan 2023. | D23: Plan 2024. | E23: Projekcija 2025. | F23: Projekcija 2026.
A24: RASHODI UKUPNO | B24: =+B25+B31 -> 2332497.21 | C24: =+C25+C31 -> 3869019.47 | D24: =+D25+D31 -> 2409345.73 | E24: =+E25+E31 -> 2383930.17 | F24: 2383930.17
A25: 3 Rashodi poslovanja | B25: =SUM(B26:B30) -> 2316551.72 | C25: =SUM(C26:C30) -> 2527496.89 | D25: =+D26+D27+D28+D29+D30 -> 2406296.65 | E25: 2380881.09 | F25: 2380881.09
A26: 31 Rashodi za zaposlene | B26: =2558.9+663.61+2096253.01 -> 2099475.52 | C26: 2135687.87 | D26: 2144388.95 | E26: 2143888.95 | F26: 2143888.95
A27: 32 Materijalni rashodi | B27: 204571.93 | C27: 386668.97 | D27: 250159.67 | E27: 233452.09 | F27: 233452.09
A28: 34 Financijski rashodi | B28: 11258.6 | C28: 2048.14 | D28: =1656.12+7500 -> 9156.12 | E28: 948.14 | F28: 948.14
A29: 37 Naknade građanima i kućanstvima na temelju osiguranja i druge naknade | B29: 1245.67 | C29: 727.09 | D29: 227.09 | E29: 227.09 | F29: 227.09
A30: 38 Ostali rashodi | C30: 2364.82 | D30: 2364.82 | E30: 2364.82 | F30: 2364.82
A31: 4 Rashodi za nabavu nefinancijske imovine | B31: 15945.49 | C31: =+C32+C33 -> 1341522.58 | D31: 3049.08 | E31: 3049.08 | F31: 3049.08
A32: 42 Rashodi za nabavu proizvedene dugotrajne imovine | B32: 15945.49 | C32: 455506.53 | D32: 3049.08 | E32: 3049.08 | F32: 3049.08
A33: 45 Rashodi za dodatna ulaganja na nefinancijskoj imovini | C33: 886016.05

Sheet Prihodi i rashodi po izvorima
A1: FINANCIJSKI PLAN MEDICINSKE ŠKOLE U RIJECI ZA 2024. I PROJEKCIJA ZA 2025. I 2026. GODINU ZA 2024. I PROJEKCIJA ZA 2025. I 2026. GODINU
A5: I. OPĆI DIO
A6: A. RAČUN PRIHODA I RASHODA
A8: PRIHODI POSLOVANJA PREMA IZVORIMA FINANCIRANJA
A13: Oznaka | B13: Izvršenje 2022. | C13: Plan 2023. | D13: Plan 2024. | E13: Projekcija 2025. | F13: Projekcija 2026.
A14: PRIHODI UKUPNO | B14: =+B15+B18+B20+B23+B26 -> 2323572.72 | C14: =+C15+C18+C20+C23+C26 -> 3364856.9 | D14: =+D15+D18+D20+D23+D26 -> 2929345.73 | E14: =+E15+E18+E20+E23+E26 -> 2383930.17 | F14: 2383930.17
A15: Izvor: 1 OPĆI PRIHODI I PRIMICI | B15: =+B16 -> 16565.01 | C15: 738261.57 | D15: =6695.61+7500 -> 14195.61 | E15: 6695.61 | F15: 6695.61
A16: Izvor: 11 Opći prihodi i primici | B16: =16324.91+240.1 -> 16565.01 | C16: 615664.52 | D16: =6695.61+7500 -> 14195.61 | E16: 6695.61 | F16: 6695.61
A17: Izvor 18 Prensena sredstva - opći prihodi i primici | C17: 122597.05
A18: Izvor: 3 VLASTITI PRIHODI | B18: =+B19 -> 18920.81 | C18: 14972.02 | D18: 14973.02 | E18: 14973.02 | F18: 14973.02
A19: Izvor: 32 Vlastiti prihodi - proračunski korisnici | B19: 18920.81 | C19: 14972.02 | D19: 14973.02 | E19: 14973.02 | F19: 14973.02
A20: Izvor: 4 PRIHODI ZA POSEBNE NAMJENE | B20: =+B21+B22 -> 165907.8 | C20: 192074.11 | D20: 210228.61 | E20: 210228.61 | F20: 210228.61
A21: Izvor: 43 Prihodi za posebne namjene - proračunski korisnici | B21: 26319.2 | C21: 26650 | D21: 26650 | E21: 26650 | F21: 26650
A22: Izvor: 44 Prihodi za decentralizirane funkcije | B22: 139588.6 | C22: 165424.11 | D22: 183578.61 | E22: 183578.61 | F22: 183578.61
A23: Izvor: 5 POMOĆI | B23: =+B24+B25 -> 2120922.48 | C23: 2416920.4 | D23: 2688097.88 | E23: 2150182.32 | F23: 2150182.32
A24: Izvor: 51 Pomoći | B24: 0 | C24: 847.59 | D24: 4195.49 | E24: 4195.49 | F24: 4195.49
A25: Izvor: 52 Pomoći - proračunski korisnici | B25: =2120653.3+269.18 -> 2120922.48 | C25: 2416072.81 | D25: 2683902.39 | E25: 2145986.83 | F25: 2145986.83
A26: Izvor: 6 DONACIJE | B26: =+B27 -> 1256.62 | C26: 2628.8 | D26: 1850.61 | E26: 1850.61 | F26: 1850.61
A27: Izvor: 62 Donacije - proračunski korisnici | B27: 1256.62 | C27: 2628.8 | D27: 1850.61 | E27: 1850.61 | F27: 1850.61
A32: RASHODI POSLOVANJA PREMA IZVORIMA FINANCIRANJA
A35: Oznaka | B35: Izvršenje 2022. | C35: Plan 2023. | D35: Plan 2024. | E35: Projekcija 2025. | F35: Projekcija 2026.
A36: RASHODI UKUPNO | B36: =+B37+B40+B43+B47+B51 -> 2332497.21 | C36: =+C37+C40+C43+C47+C51+C53 -> 3869019.47 | D36: =+D37+D40+D43+D47+D51 -> 2409345.73 | E36: =+E37+E40+E43+E47+E51 -> 2383930.17 | F36: 2383930.17
A37: Izvor: 1 OPĆI PRIHODI I PRIMICI | B37: 16565 | C37: 738261.57 | D37: =+D38 -> 14195.61 | E37: 6695.61 | F37: 6695.61
A38: Izvor: 11 Opći prihodi i primici | B38: 16565 | C38: 615664.52 | D38: =6695.61+7500 -> 14195.61 | E38: 6695.61 | F38: 6695.61
A39: Izvor 18 Prensena sredstva - opći prihodi i primici | C39: 122597.05
A40: Izvor: 3 VLASTITI PRIHODI | B40: 14864.63 | C40: 22263.48 | D40: 21871.02 | E40: 14973.02 | F40: 14973.02
A41: Izvor: 32 Vlastiti prihodi - proračunski korisnici | B41: 11629.35 | C41: 14972.02 | D41: 14973.02 | E41: 14973.02 | F41: 14973.02
A42: Izvor: 38 Prenesena sredstva - vlastiti prihodi proračunskih korisnika | B42: 3235.28 | C42: 7291.46 | D42: 6898
A43: Izvor: 4 PRIHODI ZA POSEBNE NAMJENE | B43: =+B44+B45+B46 -> 172341.92 | C43: 199689.63 | D43: 221246.17 | E43: 210228.61 | F43: 210228.61
A44: Izvor: 43 Prihodi za posebne namjene - proračunski korisnici | B44: 18703.68 | C44: 26650 | D44: 26650 | E44: 26650 | F44: 26650
A45: Izvor: 44 Prihodi za decentralizirane funkcije | B45: 139588.6 | C45: 165424.11 | D45: 183578.61 | E45: 183578.61 | F45: 183578.61
A46: Izvor: 48 Prenesena sredstva - namjenski prihodi | B46: 14049.64 | C46: 7615.52 | D46: 11017.56
A47: Izvor: 5 POMOĆI | B47: =+B48+B49+B50 -> 2127469.04 | C47: 2386175.99 | D47: 2150182.32 | E47: 2150182.32 | F47: 2150182.32
A48: Izvor: 51 Pomoći | B48: 0 | C48: 847.59 | D48: 4195.49 | E48: 4195.49 | F48: 4195.49
A49: Izvor: 52 Pomoći - proračunski korisnici | B49: 2126076.39 | C49: 2384918.58 | D49: 2145986.83 | E49: 2145986.83 | F49: 2145986.83
A50: Izvor 58 Prensena sredstva - pomoći | B50: 1392.65 | C50: 409.82
A51: Izvor: 6 DONACIJE | B51: 1256.62 | C51: 2628.8 | D51: 1850.61 | E51: 1850.61 | F51: 1850.61
A52: Izvor: 62 Donacije - proračunski korisnici | B52: 1256.62 | C52: 2628.8 | D52: 1850.61 | E52: 1850.61 | F52: 1850.61
A53: Izvor 8 NAMJENSKI PRIMICI | C53: 520000
A54: Izvor 83 Namjenski primici - proračunski korisnici | C54: 520000

Sheet Rashodi prema funkcijskoj kl
A2: FINANCIJSKI PLAN MEDICINSKE ŠKOLE U RIJECI ZA 2024. I PROJEKCIJA ZA 2025. I 2026. GODINU ZA 2024. I PROJEKCIJA ZA 2025. I 2026. GODINU
A4: I. OPĆI DIO
A6: A. RAČUN PRIHODA I RASHODA
A8: RASHODI PREMA FUNKCIJSKOJ KLASIFIKACIJI
A10: Oznaka | B10: Izvršenje 2022. | C10: Plan 2023. | D10: Plan 2024. | E10: Projekcija 2025. | F10: Projekcija 2026.
A11: Funk. klas: 09 OBRAZOVANJE | B11: =+B12+B13 -> 2332497.21 | C11: =+C12+C13 -> 3869019.47 | D11: =+D12+D13 -> 2929345.73 | E11: 2383930.17 | F11: 2383930.17
A12: 092 Srednjoškolsko obrazovanje | B12: =2332257.1+0.02 -> 2332257.12 | C12: 3868407.9 | D12: =2921235.73+7500 -> 2928735.73 | E12: 2383320.17 | F12: 2383320.17
A13: 098 Usluge obrazovanja koje nisu drugdje svrstane | B13: 240.09 | C13: 611.57 | D13: 610 | E13: 610 | F13: 610

Sheet Račun financiranja
A1: FINANCIJSKI PLAN MEDICINSKE ŠKOLE U RIJECI ZA 2024. I PROJEKCIJA ZA 2025. I 2026. GODINU ZA 2024. I PROJEKCIJA ZA 2025. I 2026. GODINU
A3: I. OPĆI DIO
A5: B. RAČUN FINANCIRANJA PREMA EKONOMSKOJ KLASIFIKACIJI
A7: Razred | B7: Skupina | C7: Naziv | D7: Izvršenje 2022. | E7: Plan 2023. | F7: Plan za 2024. | G7: Projekcija za 2025. | H7: Projekcija za 2026.
C8: PRIMICI UKUPNO | E8: =+E9 -> 520000
A9: 8 | C9: Primici od financijske imovine i zaduživanja | E9: =+E10 -> 520000
B10: 84 | C10: Primici od zaduživanja | E10: 520000
C12: IZDACI UKUPNO | F12: =+F14 -> 520000
A13: 5 | C13: Izdaci za financijsku imovinu i otplate zajmova | F13: =+F14 -> 520000
B14: 54 | C14: Izdaci za otplatu glavnice primljenih kredita i zajmova | F14: 520000

Sheet Račun financiranja po izvorima
A1: FINANCIJSKI PLAN MEDICINSKE ŠKOLE U RIJECI ZA 2024. I PROJEKCIJA ZA 2025. I 2026. GODINU ZA 2024. I PROJEKCIJA ZA 2025. I 2026. GODINU
A3: I. OPĆI DIO
A5: B. RAČUN FINANCIRANJA PREMA IZVORIMA FINANCIRANJA
A7: Brojčana oznaka i naziv | B7: Izvršenje 2022. | C7: Plan 2023. | D7: Plan za 2024. | E7: Projekcija za 2025. | F7: Projekcija za 2026.
A8: PRIMICI UKUPNO | C8: =+C9 -> 520000
A9: Izvor 8 Namjenski primici | C9: =+C10 -> 520000
A10: Izvor 83 Namjenski primici - proračunski korisnici | C10: 520000
A12: IZDACI UKUPNO | D12: =+D13 -> 520000
A13: Izvor 8 Namjenski primici | D13: =+D14 -> 520000
A14: Izvor 88 Prenesena sredstva - namjenski primici | D14: 520000

Sheet Posebni dio
A1: FINANCIJSKI PLAN MEDICINSKE ŠKOLE U RIJECI ZA 2024. I PROJEKCIJA ZA 2025. I 2026. GODINU ZA 2024. I PROJEKCIJA ZA 2025. I 2026. GODINU
A5: II. POSEBNI DIO
A14: Oznaka | B14: Izvršenje 2022. | C14: Plan 2023. | D14: Plan 2024. | E14: Projekcija 2025. | F14: Projekcija 2026.
A15: SVEUKUPNO RASHODI I IZDACI | B15: 2332497.2 | C15: 3869019.47 | D15: =2921845.73+7500 -> 2929345.73 | E15: 2383930.17 | F15: 2383930.17
A16: Program: 5306 Obilježavanje postignuća učenika i nastavnika | B16: 240.1 | C16: 611.57 | D16: 610 | E16: 610 | F16: 610
A17: A 530605 Natjecanja i smotre | B17: 240.1 | C17: 611.57 | D17: 610 | E17: 610 | F17: 610
A18: Izvor: 1 OPĆI PRIHODI I PRIMICI | B18: 240.1 | C18: 611.57 | D18: 610 | E18: 610 | F18: 610
A19: Izvor: 11 Opći prihodi i primici | B19: 240.1 | C19: 611.57 | D19: 610 | E19: 610 | F19: 610
A20: 3 Rashodi poslovanja | B20: 240.1 | C20: 611.57 | D20: 610 | E20: 610 | F20: 610
A21: 32 Materijalni rashodi | B21: 240.1 | C21: 611.57 | D21: 610 | E21: 610 | F21: 610
A22: Program: 5501 Srednjoškolsko obrazovanje | B22: 2313653.42 | C22: 2506256.97 | D22: 2905540.73 | E22: 2367625.17 | F22: 2367625.17
A23: A 550101 Osiguravanje uvjeta rada | B23: 2313653.42 | C23: 2401159.92 | D23: =2385540.73 -> 2385540.73 | E23: 2367625.17 | F23: 2367625.17
A24: Izvor: 1 OPĆI PRIHODI I PRIMICI | B24: 13935.89 | C24: 39000 | D24: =+D25 -> 0
A25: Izvor: 11 Opći prihodi i primici | B25: 13935.89 | C25: 19000 | D25: =+D26 -> 0
A26: 3 Rashodi poslovanja | B26: 13935.89 | C26: 19000
A27: 32 Materijalni rashodi | B27: 13935.89 | C27: 19000
A28: Izvor: 18 Prenesena sredstva - opći prihodi i primici | C28: 20000
A29: 3 Rashodi poslovanja | C29: 20000
A30: 32 Materijalni rashodi | C30: 20000
A31: Izvor: 3 VLASTITI PRIHODI | B31: 14864.52 | C31: 22263.48 | D31: 21871.02 | E31: 14973.02 | F31: 14973.02
A32: Izvor: 32 Vlastiti prihodi - proračunski korisnici | B32: 11629.35 | C32: 14972.02 | D32: 14973.02 | E32: 14973.02 | F32: 14973.02
A33: 3 Rashodi poslovanja | B33: 11629.35 | C33: 14972.02 | D33: 14973.02 | E33: 14973.02 | F33: 14973.02
A34: 31 Rashodi za zaposlene | B34: 2558.9 | C34: 2500 | D34: 2500 | E34: 2500 | F34: 2500
A35: 32 Materijalni rashodi | B35: 8973.69 | C35: 12372.02 | D35: 12373.02 | E35: 12373.02 | F35: 12373.02
A36: 34 Financijski rashodi | B36: 96.76
A37: 37 Naknade građanima i kućanstvima na temelju osiguranja i druge naknade | C37: 100 | D37: 100 | E37: 100 | F37: 100
A38: Izvor: 38 Prenesena sredstva - vlastiti prihodi proračunskih korisnika | B38: 3235.28 | C38: 7291.46 | D38: 6898
A39: 3 Rashodi poslovanja | B39: 3235.28 | C39: 7291.46 | D39: 6898
A40: 31 Rashodi za zaposlene | B40: 663.61 | C40: 500 | D40: 500
A41: 32 Materijalni rashodi | B41: 2571.66 | C41: 6791.46 | D41: 6398
A42: Izvor: 4 PRIHODI ZA POSEBNE NAMJENE | B42: 158306.88 | C42: 194889.99 | D42: 218860.7 | E42: 207843.14 | F42: 207843.14
A43: Izvor: 43 Prihodi za posebne namjene - proračunski korisnici | B43: 15134.77 | C43: 23753.35 | D43: 24264.53 | E43: 24264.53 | F43: 24264.53
A44: 3 Rashodi poslovanja | B44: 15134.77 | C44: 23753.35 | D44: 24264.53 | E44: 24264.53 | F44: 24264.53
A45: 32 Materijalni rashodi | B45: 14611.06 | C45: 23543.71 | D45: 23346.91 | E45: 24054.89 | F45: 24054.89
A46: 34 Financijski rashodi | B46: 523.71 | C46: 209.64 | D46: 917.62 | E46: 209.64 | F46: 209.64
A47: Izvor: 44 Prihodi za decentralizirane funkcije | B47: 139588.6 | C47: 164579 | D47: 183578.61 | E47: 183578.61 | F47: 183578.61
A48: 3 Rashodi poslovanja | B48: 139588.6 | C48: 164579 | D48: 183578.61 | E48: 183578.61 | F48: 183578.61
A49: 32 Materijalni rashodi | B49: 139180.86 | C49: 164114.47 | D49: 183114.08 | E49: 183114.08 | F49: 183114.08
A50: 34 Financijski rashodi | B50: 407.73 | C50: 464.53 | D50: 464.53 | E50: 464.53 | F50: 464.53
A51: Izvor: 48 Prenesena sredstva - namjenski prihodi | B51: 3583.52 | C51: 6557.64 | D51: 11017.56
A52: 3 Rashodi poslovanja | B52: 3583.52 | C52: 6557.64 | D52: 11017.56
A53: 32 Materijalni rashodi | B53: 3583.52 | C53: 6557.64 | D53: 11017.56
A54: Izvor: 5 POMOĆI | B54: 2125816.04 | C54: 2143766.38 | D54: 2143489.29 | E54: 2143489.29 | F54: 2143489.29
A55: Izvor: 52 Pomoći - proračunski korisnici | B55: 2124520.84 | C55: 2143356.56 | D55: 2143489.29 | E55: 2143489.29 | F55: 2143489.29
A56: 3 Rashodi poslovanja | B56: 2124520.84 | C56: 2143356.56 | D56: 2143489.29 | E56: 2143489.29 | F56: 2143489.29
A57: 31 Rashodi za zaposlene | B57: 2096253.01 | C57: 2129642.27 | D57: 2131575 | E57: 2131575 | F57: 2131575
A58: 32 Materijalni rashodi | B58: 18020.38 | C58: 12213.23 | D58: 11513.23 | E58: 11513.23 | F58: 11513.23
A59: 34 Financijski rashodi | B59: 10230.4 | C59: 1373.97 | D59: 273.97 | E59: 273.97 | F59: 273.97
A60: 37 Naknade građanima i kućanstvima na temelju osiguranja i druge naknade | B60: 17.05 | C60: 127.09 | D60: 127.09 | E60: 127.09 | F60: 127.09
A61: Izvor 58 Prensena sredstva - pomoći - proračunski korisnici | B61: 1295.21 | C61: 409.82
A62: 3 Rashodi poslovanja | B62: 1295.21 | C62: 409.82
A63: 32 Materijalni rashodi | B63: 1261.1 | C63: 409.82
A64: 37 Naknade građanima i kućanstvima na temelju osiguranja i druge naknade | B64: 34.11
A65: Izvor: 6 DONACIJE | B65: 729.98 | C65: 1240.07 | D65: 1319.72 | E65: 1319.72 | F65: 1319.72
A66: Izvor: 62 Donacije - proračunski korisnici | B66: 729.98 | C66: 1240.07 | D66: 1319.72 | E66: 1319.72 | F66: 1319.72
A67: 3 Rashodi poslovanja | B67: 729.98 | C67: 1240.07 | D67: 1319.72 | E67: 1319.72 | F67: 1319.72
A68: 32 Materijalni rashodi | B68: 729.98 | C68: 1240.07 | D68: 1319.72 | E68: 1319.72 | F68: 1319.72
A69: T 550102 Investicijsko održavanje objekata i opreme | C69: 105097.05
A70: Izvor: 1 OPĆI PRIHODI I PRIMICI | C70: 105097.05
A71: Izvor: 11 Opći prihodi i primici | C71: 2500
A72: 3 Rashodi poslovanja | C72: 2500
A73: 32 Materijalni rashodi | C73: 2500
A74: Izvor: 18 Prenesena sredstva - opći prihodi i primici | C74: 102597.05
A75: 3 Rashodi poslovanja | C75: 102597.05
A76: 32 Materijalni rashodi | C76: 102597.05
A77: A 550107 Otplata kredita | D77: =520000+D78 -> 527500
A78: Izvor: 1 OPĆI PRIHODI I PRIMICI | D78: =+D79 -> 7500
A79: Izvor: 11 Opći prihodi i primici | D79: =+D80 -> 7500
A80: 3 Rashodi poslovanja | D80: 7500
A81: 34 Financijski rashodi | D81: 7500
A82: Izvor: 8 NAMJENSKI PRIMICI | D82: 520000
A83: Izvor: 88 Prenesena sredstva - namjenski primici | D83: 520000
A84: 5 Izdaci za financijsku imovinu i otplate zajmova | D84: 520000
A85: 54 Izdaci za otplatu glavnice primljenih kredita i zajmova | D85: 520000
A86: Program: 5502 Unapređenje kvalitete odgojno obrazovnog sustava | B86: 2658.19 | C86: 1355697.11 | D86: 12645.92 | E86: 12645.92 | F86: 12645.92
A87: A 550205 Sufinanciranje rada pomoćnika u nastavi | C87: 3204.33 | D87: 10281.1 | E87: 10281.1 | F87: 10281.1
A88: Izvor: 1 OPĆI PRIHODI I PRIMICI | C88: 2356.74 | D88: 6085.61 | E88: 6085.61 | F88: 6085.61
A89: Izvor: 11 Opći prihodi i primici | C89: 2356.74 | D89: 6085.61 | E89: 6085.61 | F89: 6085.61
A90: 3 Rashodi poslovanja | C90: 2356.74 | D90: 6085.61 | E90: 6085.61 | F90: 6085.61
A91: 31 Rashodi za zaposlene | C91: 2356.74 | D91: 6085.61 | E91: 6085.61 | F91: 6085.61
A92: Izvor: 5 POMOĆI | C92: 847.59 | D92: 4195.49 | E92: 4195.49 | F92: 4195.49
A93: Izvor: 51 Pomoći | C93: 847.59 | D93: 4195.49 | E93: 4195.49 | F93: 4195.49
A94: 3 Rashodi poslovanja | C94: 847.59 | D94: 4195.49 | E94: 4195.49 | F94: 4195.49
A95: 31 Rashodi za zaposlene | C95: 688.86 | D95: 3728.34 | E95: 3728.34 | F95: 3728.34
A96: 32 Materijalni rashodi | C96: 158.73 | D96: 467.15 | E96: 467.15 | F96: 467.15
A97: T 550207 EU projekti kod proračunskih korisnika - SŠ i učenički domovi | B97: 269.18
A98: Izvor: 5 POMOĆI | B98: 269.18
A99: Izvor: 52 Pomoći - proračunski korisnici | B99: 269.18
A100: 3 Rashodi poslovanja | B100: 269.18
A101: 32 Materijalni rashodi | B101: 269.18
A102: A 550216 Program "Zdravlje i higijena" | B102: 2389.01 | C102: 1200
A103: Izvor: 1 OPĆI PRIHODI I PRIMICI | B103: 2389.01 | C103: 1200
A104: Izvor: 11 Opći prihodi i primici | B104: 2389.01 | C104: 1200
A105: 3 Rashodi poslovanja | B105: 2389.01 | C105: 1200
A106: 32 Materijalni rashodi | B106: 1194.51 | C106: 700
A107: 37 Naknade građanima i kućanstvima na temelju osiguranja i druge naknade | B107: 1194.51 | C107: 500
A108: K 550218 Unaprjeđenje infrastrukture Medicinske škole - regionalnog centra kompetentnosti u sektoru zdravstva - EU projekt | C108: 1348927.96
A109: Izvor: 1 OPĆI PRIHODI I PRIMICI | C109: 589996.21
A110: Izvor: 11 Opći prihodi i primici | C110: 589996.21
A111: 3 Rashodi poslovanja | C111: 13859.2
A112: 32 Materijalni rashodi | C112: 13859.2
A113: 4 Rashodi za nabavu nefinancijske imovine | C113: 576137.01
A114: 45 Rashodi za dodatna ulaganja na nefinancijskoj imovini | C114: 576137.01
A115: Izvor: 5 POMOĆI | C115: 238931.75
A116: Izvor: 52 Pomoći - proračunski korisnici | C116: 238931.75
A117: 3 Rashodi poslovanja
A118: 32 Materijalni rashodi
A119: 4 Rashodi za nabavu nefinancijske imovine | C119: 238931.75
A120: 42 Rashodi za nabavu proizvedene dugotrajne imovine | C120: 161563.84
A121: 45 Rashodi za dodatna ulaganja na nefinancijskoj imovini | C121: 77367.91
A122: Izvor: 8 NAMJENSKI PRIMICI | C122: 520000
A123: Izvor: 83 Namjenski primici-proračunski korisnici | C123: 520000
A124: 4 Rashodi za nabavu nefinancijske imovine | C124: 520000
A125: 42 Rashodi za nabavu proizvedene dugotrajne imovine | C125: 287488.87
A126: 45 Rashodi za dodatna ulaganja na nefinancijskoj imovini | C126: 232511.13
A127: 45 Rashodi za dodatna ulaganja na nefinancijskoj imovini | C127: 232511.13
A128: A 550221 Osiguranje besplatnih zaliha menstrualnih higijenskih potrepština | C128: 2364.82 | D128: 2364.82 | E128: 2364.82 | F128: 2364.82
A129: Izvor: 5 POMOĆI | C129: 2364.82 | D129: 2364.82 | E129: 2364.82 | F129: 2364.82
A130: Izvor: 52 Pomoći - proračunski korisnici | C130: 2364.82 | D130: 2364.82 | E130: 2364.82 | F130: 2364.82
A131: 3 Rashodi poslovanja | C131: 2364.82 | D131: 2364.82 | E131: 2364.82 | F131: 2364.82
A132: 38 Ostali rashodi | C132: 2364.82 | D132: 2364.82 | E132: 2364.82 | F132: 2364.82
A133: Program: 5504 Kapitalna ulaganja u odgojno obrazovnu infrastrukturu | B133: 15945.49 | C133: 2364.82 | D133: 3049.08 | E133: 3049.08 | F133: 3049.08
A134: K 550401 Opremanje ustanova školstva | B134: 15945.49 | C134: 6453.82 | D134: 3049.08 | E134: 3049.08 | F134: 3049.08
A135: Izvor: 4 PRIHODI ZA POSEBNE NAMJENE | B135: 14035.04 | C135: 4799.64 | D135: 2385.47 | E135: 2385.47 | F135: 2385.47
A136: Izvor: 43 Prihodi za posebne namjene - proračunski korisnici | B136: 3568.91 | C136: 2896.65 | D136: 2385.47 | E136: 2385.47 | F136: 2385.47
A137: 4 Rashodi za nabavu nefinancijske imovine | B137: 3568.91 | C137: 2896.65 | D137: 2385.47 | E137: 2385.47 | F137: 2385.47
A138: 42 Rashodi za nabavu proizvedene dugotrajne imovine | B138: 3568.91 | C138: 2896.65 | D138: 2385.47 | E138: 2385.47 | F138: 2385.47
A139: Izvor: 44 Prihodi za decentralizirane funkcije | C139: 845.11
A140: 4 Rashodi za nabavu nefinancijske imovine | C140: 845.11
A141: 42 Rashodi za nabavu proizvedene dugotrajne imovine | C141: 845.11
A142: Izvor: 48 Prenesena sredstva - namjenski prihodi | B142: 10466.12 | C142: 1057.88
A143: 4 Rashodi za nabavu nefinancijske imovine | B143: 10466.12 | C143: 1057.88
A144: 42 Rashodi za nabavu proizvedene dugotrajne imovine | B144: 10466.12 | C144: 1057.88
A145: Izvor: 5 POMOĆI | B145: 1383.81 | C145: 265.45 | D145: 132.72 | E145: 132.72 | F145: 132.72
A146: Izvor: 52 Pomoći - proračunski korisnici | B146: 1286.37 | C146: 265.45 | D146: 132.72 | E146: 132.72 | F146: 132.72
A147: 4 Rashodi za nabavu nefinancijske imovine | B147: 1286.37 | C147: 265.45 | D147: 132.72 | E147: 132.72 | F147: 132.72
A148: 42 Rashodi za nabavu proizvedene dugotrajne imovine | B148: 1286.37 | C148: 265.45 | D148: 132.72 | E148: 132.72 | F148: 132.72
A149: Izvor: 58 Prenesena sredstva - pomoći | B149: 97.44
A150: 4 Rashodi za nabavu nefinancijske imovine | B150: 97.44
A151: 42 Rashodi za nabavu proizvedene dugotrajne imovine | B151: 97.44
A152: Izvor: 6 DONACIJE | B152: 526.64 | C152: 1388.73 | D152: 530.89 | E152: 530.89 | F152: 530.89
A153: Izvor: 62 Donacije - proračunski korisnici | B153: 526.64 | C153: 1388.73 | D153: 530.89 | E153: 530.89 | F153: 530.89
A154: 4 Rashodi za nabavu nefinancijske imovine | B154: 526.64 | C154: 1388.73 | D154: 530.89 | E154: 530.89 | F154: 530.89
A155: 42 Rashodi za nabavu proizvedene dugotrajne imovine | B155: 526.64 | C155: 1388.73 | D155: 530.89 | E155: 530.89 | F155: 530.89
